bitfinex-derivatives/quotes_BTCF0:USTF0_20250703
["timestamp","ask_amount","ask_price","bid_price","bid_amount"]
[1751519554864,2.4806885,109170.0,109160.0,0.0139456]
[1751519555961,1.3126085,109170.0,109160.0,0.0139456]
[1751519556162,2.4806885,109170.0,109160.0,0.0139456]
[1751519558673,1.3126085,109170.0,109160.0,0.0139456]
[1751519558967,2.3800485,109170.0,109160.0,0.0139456]
[1751519559669,2.3800485,109170.0,109160.0,0.0462456]
[1751519561771,2.3800485,109170.0,109160.0,0.04613525]
[1751519563673,2.32515728,109170.0,109160.0,0.22914525]
[1751519563971,2.31783728,109170.0,109160.0,0.22914525]
[1751519564872,2.31783728,109170.0,109160.0,0.22914325]
[1751519566273,1.15771728,109170.0,109160.0,0.22914325]
[1751519566572,2.31627728,109170.0,109160.0,0.22914325]
[1751519566876,2.31627728,109170.0,109160.0,0.29164325]
[1751519567575,2.28557728,109170.0,109160.0,0.29164325]
[1751519568377,1.85996482,109170.0,109160.0,0.29164873]
[1751519568577,2.35876558,109170.0,109160.0,0.29164873]
[1751519568880,2.35880952,109170.0,109160.0,0.29164873]
[1751519569077,2.35880952,109170.0,109160.0,0.24770453]
[1751519569371,2.38880952,109170.0,109160.0,0.24770453]
[1751519571077,2.38880952,109170.0,109160.0,0.24780139]
[1751519574376,2.74960952,109170.0,109160.0,0.24780139]
[1751519576977,2.74960952,109170.0,109160.0,0.24778095]
[1751519578280,2.67642122,109170.0,109160.0,0.18528095]
[1751519579778,2.67642122,109170.0,109160.0,0.32712453]
[1751519583375,2.67642122,109170.0,109160.0,0.35892453]
[1751519583984,2.61392122,109170.0,109160.0,0.35892453]
[1751519584282,2.61392122,109170.0,109160.0,0.39162453]
[1751519585291,2.64412122,109170.0,109160.0,0.39155206]
[1751519586284,2.64412122,109170.0,109160.0,0.35885206]
[1751519586985,2.66049267,109170.0,109160.0,0.35885206]
[1751519587488,2.73368097,109170.0,109160.0,0.35885206]
[1751519589380,2.35960097,109170.0,109160.0,0.35885206]
[1751519591187,1.15412097,109170.0,109160.0,0.35885206]
[1751519591381,0.29452021,109170.0,109160.0,0.75015206]
[1751519591587,1.67049036,109170.0,109160.0,0.99955244]
[1751519592187,1.67049036,109170.0,109160.0,0.75015206]
[1751519593184,0.27628998,109170.0,109160.0,0.75015206]
[1751519593385,0.52567885,109170.0,109160.0,0.98570986]
[1751519593590,1.41707885,109170.0,109160.0,1.16886436]
[1751519594194,1.36213229,109170.0,109160.0,1.16886436]
[1751519594593,1.36213229,109170.0,109160.0,0.98570986]
[1751519595288,1.36213229,109170.0,109160.0,0.73630948]
[1751519595593,1.36213229,109170.0,109160.0,0.98570986]
[1751519601997,1.36193229,109170.0,109160.0,0.98570986]
[1751519602195,0.47073229,109170.0,109160.0,0.98570986]
[1751519602391,1.36193229,109170.0,109160.0,0.98570986]
[1751519602698,1.36193229,109170.0,109160.0,0.73630948]
[1751519602898,1.36189229,109170.0,109160.0,0.98570986]
[1751519603399,0.47073229,109170.0,109160.0,0.98570986]
[1751519603598,1.36189229,109170.0,109160.0,0.98570986]
[1751519608100,1.36189229,109170.0,109160.0,0.84386628]
[1751519608299,1.36189229,109170.0,109160.0,0.98570986]
[1751519611406,0.20496046,109170.0,109160.0,1.48826474]
[1751519612006,0.20496046,109170.0,109160.0,1.49826474]
[1751519612206,0.1831377,109170.0,109160.0,1.49826474]
[1751519613013,0.20533077,109170.0,109160.0,1.49826474]
[1751519613306,0.2289169,109180.0,109170.0,0.3545036]
[1751519613498,0.3204836,109180.0,109170.0,1.30600436]
[1751519613700,0.3204836,109180.0,109170.0,1.23979598]
[1751519614506,0.3214836,109180.0,109170.0,1.23979598]
[1751519614808,0.3214836,109180.0,109170.0,1.48919636]
[1751519615211,0.3214836,109180.0,109170.0,1.23979598]
[1751519615513,0.3224836,109180.0,109170.0,1.23979598]
[1751519617711,0.2766997,109180.0,109170.0,1.23979598]
[1751519618416,0.2766997,109180.0,109170.0,0.9903956]
[1751519618713,0.2766997,109180.0,109170.0,1.48919636]
[1751519620617,0.2309169,109180.0,109170.0,1.48919636]
[1751519620813,0.1851347,109180.0,109170.0,1.49919636]
[1751519621316,0.002,109180.0,109170.0,1.49919636]
[1751519621716,0.274673,109190.0,109180.0,0.1831209]
[1751519621923,0.274673,109190.0,109180.0,1.27848756]
[1751519622619,0.2746521,109200.0,109190.0,0.1831042]
[1751519622922,0.2746521,109200.0,109190.0,1.02997048]
[1751519623124,0.2746521,109200.0,109190.0,1.06107048]
[1751519623423,0.2746521,109200.0,109190.0,0.8116701]
[1751519623723,0.52405248,109200.0,109190.0,0.5321659]
[1751519623913,0.58555248,109200.0,109190.0,0.78156628]
[1751519624523,0.58555248,109200.0,109190.0,0.96467048]
[1751519624823,0.58755248,109200.0,109190.0,0.96467048]
[1751519625227,0.60966496,109200.0,109190.0,0.96467048]
[1751519625723,0.61166496,109200.0,109190.0,0.96467048]
[1751519625926,0.36226458,109200.0,109190.0,0.7152701]
[1751519626727,0.36226458,109200.0,109190.0,0.5321659]
[1751519626929,0.43512621,109200.0,109190.0,0.5321659]
[1751519627524,0.68426832,109200.0,109190.0,0.5321659]
[1751519631130,0.43512621,109200.0,109190.0,0.5321659]
[1751519631323,0.68426832,109200.0,109190.0,0.5321659]
[1751519631628,0.43512621,109200.0,109190.0,0.5321659]
[1751519631828,0.68426832,109200.0,109190.0,0.5321659]
[1751519632221,0.68426832,109200.0,109190.0,0.397432]
[1751519633732,0.68426832,109200.0,109190.0,0.3608]
[1751519634036,0.1831042,109190.0,109180.0,0.3608]
[1751519634232,1.43947879,109190.0,109180.0,0.3608]
[1751519634534,1.43947879,109190.0,109180.0,0.397436]
[1751519635433,1.44047879,109190.0,109180.0,0.397436]
[1751519636035,1.44047879,109190.0,109170.0,0.3608]
[1751519636036,0.183121,109180.0,109170.0,0.3608]
[1751519636336,0.183121,109180.0,109170.0,0.5321659]
[1751519636337,0.51827559,109180.0,109170.0,0.5321659]
[1751519637237,0.51927559,109180.0,109170.0,0.5321659]
[1751519643134,0.88007559,109180.0,109170.0,0.1713659]
[1751519643339,0.1831378,109170.0,109160.0,0.3608]
[1751519643540,0.54909239,109170.0,109160.0,0.5321659]
[1751519643738,1.43833239,109170.0,109160.0,0.5321659]
[1751519643939,1.45460607,109170.0,109160.0,0.5321659]
[1751519644541,1.45460607,109170.0,109160.0,0.5331659]
[1751519644740,1.20546396,109170.0,109160.0,0.5331659]
[1751519644941,1.45460607,109170.0,109160.0,0.5331659]
[1751519645543,1.45460607,109170.0,109160.0,0.5341659]
[1751519645744,1.45460607,109170.0,109160.0,0.5669659]
[1751519646646,1.45460607,109170.0,109160.0,0.5341659]
[1751519648442,1.20546396,109170.0,109160.0,0.5341659]
[1751519648746,1.45460607,109170.0,109160.0,0.5341659]
[1751519649040,1.20546396,109170.0,109160.0,0.5341659]
[1751519649244,1.45460607,109170.0,109160.0,0.3628]
[1751519649444,1.45460607,109170.0,109160.0,0.399442]
[1751519650546,2.06454818,109170.0,109160.0,0.01561154]
[1751519652350,2.11949474,109170.0,109160.0,0.01561154]
[1751519652946,2.11949474,109170.0,109160.0,0.01566427]
[1751519653351,2.06454818,109170.0,109160.0,0.01566427]
[1751519654051,2.11949474,109170.0,109160.0,0.01566427]
[1751519654652,2.11949474,109170.0,109160.0,0.01566208]
[1751519658554,2.06454818,109170.0,109160.0,0.01566208]
[1751519659360,2.06454818,109170.0,109150.0,0.3608]
[1751519659361,0.1831545,109160.0,109150.0,0.3608]
[1751519659552,0.49359661,109160.0,109150.0,0.36403145]
[1751519659860,0.74155661,109160.0,109150.0,0.36403145]
[1751519660552,0.74155661,109160.0,109150.0,0.36703145]
[1751519661371,0.74155661,109160.0,109150.0,0.36903145]
[1751519661657,0.74155661,109160.0,109150.0,0.54039735]
[1751519662362,0.76394891,109160.0,109150.0,0.54039735]
[1751519664954,0.5148068,109160.0,109150.0,0.54039735]
[1751519665352,0.76394891,109160.0,109150.0,0.57169735]
[1751519667757,0.76394891,109160.0,109150.0,0.54039735]
[1751519669861,0.5148068,109160.0,109150.0,0.54039735]
[1751519670063,0.76394891,109160.0,109150.0,0.54039735]
[1751519671363,0.76394891,109160.0,109150.0,0.55408373]
[1751519671865,1.01357324,109160.0,109150.0,0.55408373]
[1751519672070,1.62375646,109160.0,109150.0,0.02191783]
[1751519672364,1.6785498,109160.0,109150.0,0.02191783]
[1751519672564,1.42916658,109160.0,109150.0,0.02191783]
[1751519673566,1.42916658,109160.0,109150.0,0.05856383]
[1751519673766,1.17981299,109160.0,109150.0,0.05856383]
[1751519674067,1.17981299,109160.0,109150.0,0.02191783]
[1751519676467,1.17981299,109160.0,109150.0,0.02202669]
[1751519676965,1.17981299,109160.0,109150.0,0.05867269]
[1751519678366,1.17981299,109160.0,109150.0,0.02202669]
[1751519681771,1.17981299,109160.0,109150.0,0.19339259]
[1751519685977,1.12501965,109160.0,109150.0,0.19339259]
[1751519686183,1.12501965,109160.0,109150.0,0.19339046]
[1751519688786,1.12501965,109160.0,109150.0,0.19339059]
[1751519691889,1.12501965,109160.0,109150.0,0.19339817]
[1751519692390,1.10262735,109160.0,109150.0,0.19339817]
[1751519692688,1.1251057,109160.0,109150.0,0.19339817]
[1751519693795,1.37451659,109160.0,109150.0,0.19339817]
[1751519694285,0.87569285,109160.0,109150.0,0.19339817]
[1751519694490,1.42945424,109160.0,109150.0,0.19339817]
[1751519694990,1.42945424,109160.0,109150.0,0.19339848]
[1751519695588,1.42945686,109160.0,109150.0,0.19339848]
[1751519696493,1.37451659,109160.0,109150.0,0.19339848]
[1751519696885,1.42945994,109160.0,109150.0,0.19339848]
[1751519697083,1.89147994,109160.0,109150.0,0.38283258]
[1751519697282,1.89147994,109160.0,109150.0,0.64969848]
[1751519697486,1.92477994,109160.0,109150.0,0.64969848]
[1751519697687,1.95607994,109160.0,109150.0,0.64969848]
[1751519697889,1.95607994,109160.0,109150.0,0.6360121]
[1751519698092,1.95607994,109160.0,109150.0,0.64973745]
[1751519698293,1.67741617,109160.0,109150.0,0.64973745]
[1751519698493,0.75927617,109160.0,109150.0,0.64973745]
[1751519698694,1.64399617,109160.0,109150.0,0.89914932]
[1751519698885,1.64399617,109160.0,109150.0,0.64973745]
[1751519699087,1.64395617,109160.0,109150.0,0.64973745]
[1751519700296,1.64395617,109160.0,109150.0,0.6326659]
[1751519700595,0.26045243,109160.0,109150.0,1.08232798]
[1751519700790,0.5098643,109160.0,109150.0,1.08232798]
[1751519700992,1.3943443,109160.0,109150.0,1.06860058]
[1751519701185,1.33940095,109160.0,109150.0,1.06860058]
[1751519702695,0.20550908,109160.0,109150.0,1.06860058]
[1751519702888,0.5037778,109170.0,109150.0,1.59281855]
[1751519702889,0.20857793,109170.0,109150.0,1.59281855]
[1751519703087,1.26680198,109170.0,109160.0,1.27954544]
[1751519703288,0.33677358,109170.0,109160.0,1.28289565]
[1751519703486,1.22097358,109170.0,109160.0,1.28287644]
[1751519703889,1.22097358,109170.0,109160.0,1.0332865]
[1751519704401,1.22097358,109170.0,109160.0,1.0342865]
[1751519704890,1.22097358,109170.0,109160.0,1.0352865]
[1751519705397,0.33677358,109170.0,109160.0,1.0352865]
[1751519706198,0.33677358,109170.0,109160.0,1.03528536]
[1751519706796,0.33677358,109170.0,109160.0,0.78605156]
[1751519706997,0.33677358,109170.0,109160.0,1.03528536]
[1751519711202,0.33677358,109170.0,109160.0,0.78605156]
[1751519711496,0.33677358,109170.0,109160.0,1.03528536]
[1751519720306,0.01627368,109170.0,109160.0,1.05528536]
[1751519720498,0.19941278,109170.0,109160.0,1.38528536]
[1751519720999,0.19941278,109170.0,109160.0,1.42528536]
[1751519721194,0.2747038,109180.0,109170.0,0.1831391]
[1751519721392,0.2969312,109180.0,109170.0,1.06396866]
[1751519722512,0.2747038,109180.0,109170.0,1.06396866]
[1751519723706,0.2757038,109180.0,109170.0,1.06396866]
[1751519724302,0.3083038,109180.0,109170.0,0.81473486]
[1751519724509,0.33053214,109180.0,109170.0,1.06396866]
[1751519725311,0.33153214,109180.0,109170.0,1.06396866]
[1751519726208,0.36203214,109180.0,109170.0,1.06396866]
[1751519730514,0.36203214,109180.0,109170.0,1.0606388]
[1751519731702,0.36203214,109180.0,109170.0,1.0276388]
[1751519737916,0.36203214,109180.0,109170.0,1.02759175]
[1751519744611,0.36203214,109180.0,109170.0,0.85622585]
[1751519744821,0.36203214,109180.0,109170.0,1.02759175]
[1751519745527,0.36196305,109180.0,109170.0,1.02759175]
[1751519750336,0.36196305,109180.0,109170.0,0.66679175]
[1751519750535,0.36196305,109180.0,109170.0,1.02759175]
[1751519752641,0.36196305,109180.0,109170.0,0.778405]
[1751519752840,0.36196305,109180.0,109170.0,1.02759175]
[1751519754843,0.6111498,109180.0,109170.0,1.02759175]
[1751519755645,0.36196305,109180.0,109170.0,1.02759175]
[1751519757346,0.36196305,109180.0,109170.0,1.05909175]
[1751519759843,0.36196305,109180.0,109170.0,0.809905]
[1751519760050,0.36196305,109180.0,109170.0,1.05909175]
[1751519765154,0.33146305,109180.0,109170.0,0.809905]
[1751519765352,0.33146305,109180.0,109170.0,1.05909175]
[1751519766454,0.33146305,109180.0,109170.0,0.809905]
[1751519766657,0.33146305,109180.0,109170.0,1.05909175]
[1751519770159,0.33146305,109180.0,109170.0,0.809905]
[1751519770363,0.33146305,109180.0,109170.0,1.05909175]
[1751519777465,0.33146305,109180.0,109170.0,0.809905]
[1751519777670,0.33146305,109180.0,109170.0,1.05909175]
[1751519777872,0.33146305,109180.0,109170.0,1.0698273]
[1751519778662,0.3093038,109180.0,109170.0,1.0698273]
[1751519778870,0.33147598,109180.0,109170.0,1.0698273]
[1751519783665,0.33147598,109180.0,109170.0,0.7090273]
[1751519783854,0.33147598,109180.0,109170.0,1.4306273]
[1751519786163,0.33147598,109180.0,109170.0,1.67981405]
[1751519787867,0.33147598,109180.0,109170.0,1.4306273]
[1751519788768,0.33147598,109180.0,109170.0,1.67981405]
[1751519789965,0.33147598,109180.0,109170.0,1.18144055]
[1751519790171,0.33147598,109180.0,109170.0,1.4306273]
[1751519790670,0.33147598,109180.0,109170.0,1.67981405]
[1751519792969,0.33147598,109180.0,109170.0,1.6690785]
[1751519793275,0.33147598,109180.0,109170.0,1.6798139]
[1751519795274,0.33147598,109180.0,109170.0,1.43062715]
[1751519798267,0.33147598,109180.0,109170.0,2.0298139]
[1751519798268,0.29887598,109180.0,109170.0,2.0298139]
[1751519798475,0.29887598,109180.0,109170.0,1.6798139]
[1751519802579,0.02417218,109180.0,109170.0,1.6998139]
[1751519802779,0.02417218,109180.0,109170.0,2.41447434]
[1751519803073,0.02374115,109180.0,109170.0,2.17447434]
[1751519803285,0.02374115,109180.0,109170.0,2.3798139]
[1751519803571,0.02374115,109180.0,109170.0,2.43447434]
[1751519803970,0.1831078,109190.0,109180.0,0.6814958]
[1751519804168,0.1831078,109190.0,109180.0,2.4819971]
[1751519805178,0.1831078,109190.0,109180.0,2.49115845]
[1751519805579,0.1851078,109190.0,109180.0,2.49115736]
[1751519805981,0.1851078,109190.0,109180.0,2.5276479]
[1751519806584,0.1851078,109190.0,109180.0,2.2076479]
[1751519807084,0.1871078,109190.0,109180.0,2.2076479]
[1751519808579,0.1871078,109190.0,109180.0,2.20764791]
[1751519808784,0.004,109190.0,109180.0,2.20764791]
[1751519809090,0.1871056,109190.0,109180.0,2.57764791]
[1751519809491,0.1871056,109190.0,109180.0,2.57764766]
[1751519809987,0.1871056,109190.0,109180.0,1.70927416]
[1751519810182,0.1871056,109190.0,109180.0,2.20764766]
[1751519810687,0.1871055,109190.0,109180.0,2.55764766]
[1751519810890,0.1871055,109190.0,109180.0,2.55684766]
[1751519811183,0.1871055,109190.0,109180.0,1.68504766]
[1751519811591,0.1871055,109190.0,109180.0,2.55680766]
[1751519811792,0.004,109190.0,109180.0,2.55680766]
[1751519812188,0.1871055,109190.0,109180.0,2.55680766]
[1751519814899,0.1871055,109190.0,109180.0,2.54607359]
[1751519815099,0.1871055,109190.0,109180.0,2.55680765]
[1751519816398,0.1871055,109190.0,109180.0,2.54607359]
[1751519816600,0.1871055,109190.0,109180.0,1.67431359]
[1751519816791,0.1871055,109190.0,109180.0,2.54555359]
[1751519816990,0.1871055,109190.0,109180.0,2.54547359]
[1751519817503,0.004,109190.0,109180.0,1.92350034]
[1751519817696,0.34751033,109200.0,109190.0,0.1831055]
[1751519817902,0.30173573,109200.0,109190.0,1.6483449]
[1751519819300,0.30573573,109200.0,109190.0,1.6483449]
[1751519819501,0.30873573,109200.0,109190.0,1.6483449]
[1751519819903,0.30873573,109200.0,109190.0,1.05915815]
[1751519820298,0.33923573,109200.0,109190.0,1.05915815]
[1751519820498,0.36933573,109200.0,109190.0,1.05915815]
[1751519821803,0.36933573,109200.0,109190.0,1.92995815]
[1751519822004,0.36933573,109200.0,109190.0,1.92979815]
[1751519822204,0.36933573,109200.0,109190.0,1.92975815]
[1751519824914,0.36933573,109200.0,109190.0,1.05915815]
[1751519825115,0.36933573,109200.0,109190.0,1.92943815]
[1751519826713,0.30873573,109200.0,109190.0,2.1786249]
[1751519829113,0.30873573,109200.0,109190.0,2.1782649]
[1751519829321,0.30873573,109200.0,109190.0,2.18899862]
[1751519831019,0.30873573,109200.0,109190.0,1.31907862]
[1751519831214,0.30873573,109200.0,109190.0,2.18871862]
[1751519832522,0.30873573,109200.0,109190.0,2.21447544]
[1751519833122,0.1901016,109200.0,109190.0,2.21447544]
[1751519833318,0.32333324,109210.0,109200.0,0.1830887]
[1751519833518,0.27756274,109210.0,109200.0,1.3075281]
[1751519834319,0.27756274,109210.0,109200.0,1.34401864]
[1751519835425,0.28056274,109210.0,109200.0,1.34401864]
[1751519836027,0.25066274,109210.0,109200.0,1.34401864]
[1751519836221,0.25066274,109210.0,109200.0,1.3075281]
[1751519836923,0.20488144,109210.0,109200.0,1.3075281]
[1751519837223,0.20488144,109210.0,109200.0,1.34401864]
[1751519837526,0.20488144,109210.0,109200.0,1.65401864]
[1751519837928,0.20488144,109210.0,109200.0,1.66401864]
[1751519838128,0.02180944,109210.0,109200.0,1.97320539]
[1751519838922,0.32951755,109230.0,109220.0,0.1830553]
[1751519839129,0.39321755,109230.0,109220.0,1.0422288]
[1751519839628,0.3382742,109230.0,109220.0,1.0422288]
[1751519840026,0.3696742,109230.0,109220.0,1.0422288]
[1751519840228,0.3746742,109230.0,109220.0,1.0422288]
[1751519840627,0.3746742,109230.0,109220.0,0.5438553]
[1751519840818,0.62386095,109230.0,109220.0,0.79304205]
[1751519841529,0.62886095,109230.0,109220.0,0.79304205]
[1751519841718,0.3796742,109230.0,109220.0,0.79286242]
[1751519842129,0.3796742,109230.0,109220.0,0.5438553]
[1751519844227,0.3796742,109230.0,109220.0,0.79286242]
[1751519845841,0.3796742,109230.0,109220.0,0.96422832]
[1751519846341,0.3796742,109230.0,109220.0,0.99692832]
[1751519847139,0.3165742,109230.0,109220.0,0.99692832]
[1751519847435,0.2658121,109230.0,109220.0,1.05982832]
[1751519847840,0.29102626,109240.0,109230.0,0.1830385]
[1751519848142,0.27666846,109240.0,109230.0,0.80186097]
[1751519848530,0.23091306,109240.0,109230.0,1.31733399]
[1751519848731,0.19951306,109240.0,109230.0,1.06832687]
[1751519848930,0.19951306,109240.0,109230.0,1.07032687]
[1751519850548,0.19951306,109240.0,109230.0,1.32033399]
[1751519850936,0.01647866,109240.0,109230.0,1.32033399]
[1751519851137,0.01647866,109240.0,109230.0,1.67033399]
[1751519851736,0.1830187,109250.0,109240.0,0.1830217]
[1751519851936,0.41186299,109260.0,109250.0,0.183005]
[1751519852243,0.44236299,109260.0,109250.0,0.99427802]
[1751519852841,0.44236299,109260.0,109250.0,0.96417802]
[1751519853645,0.44236299,109260.0,109250.0,0.99427802]
[1751519853844,0.44236299,109260.0,109250.0,1.02577802]
[1751519854042,0.2287271,109270.0,109260.0,0.1829882]
[1751519854235,0.2617271,109270.0,109260.0,0.79279532]
[1751519854440,0.2946271,109270.0,109260.0,0.79279532]
[1751519854944,0.2946271,109270.0,109260.0,0.5437882]
[1751519855145,0.2946271,109270.0,109260.0,0.79279532]
[1751519855449,0.2976271,109270.0,109260.0,0.79279532]
[1751519856547,0.54963422,109270.0,109260.0,0.5437882]
[1751519856749,0.3006271,109270.0,109260.0,0.5437882]
[1751519857048,0.3006271,109270.0,109260.0,0.3608]
[1751519857946,0.3006271,109270.0,109260.0,0.5437882]
[1751519858149,0.3006271,109270.0,109260.0,0.79279532]
[1751519858848,0.37282161,109270.0,109260.0,0.79279532]
[1751519859543,0.37282161,109270.0,109260.0,0.99516122]
[1751519859945,0.37282161,109270.0,109260.0,1.02646122]
[1751519862351,0.33992161,109270.0,109260.0,1.02646122]
[1751519866056,0.33992161,109270.0,109260.0,1.05846122]
[1751519866258,0.33992161,109270.0,109260.0,0.69766122]
[1751519866454,0.33992161,109270.0,109260.0,1.41926122]
[1751519866959,0.58892873,109270.0,109260.0,0.5321659]
[1751519867250,0.1829882,109260.0,109250.0,0.543805]
[1751519867452,0.49789532,109260.0,109250.0,0.7151709]
[1751519868261,0.2488882,109260.0,109250.0,0.7151709]
[1751519868656,0.2508882,109260.0,109250.0,0.7151709]
[1751519869449,0.2528882,109260.0,109250.0,0.7151709]
[1751519869656,0.2528882,109260.0,109250.0,0.99527802]
[1751519870562,0.2528882,109260.0,109250.0,0.7462709]
[1751519870955,0.2528882,109260.0,109250.0,0.99527802]
[1751519871959,0.50189532,109260.0,109250.0,0.3608]
[1751519872559,0.183005,109250.0,109240.0,0.3608]
[1751519872757,0.52701212,109250.0,109240.0,0.3608]
[1751519873467,0.1830217,109240.0,109230.0,0.3608]
[1751519873662,0.2475217,109240.0,109230.0,0.7152044]
[1751519873868,0.49652882,109240.0,109230.0,0.7152044]
[1751519874760,0.2475217,109240.0,109230.0,0.7152044]
[1751519874967,0.2475217,109240.0,109230.0,0.7172044]
[1751519875967,0.2475217,109240.0,109230.0,0.7182044]
[1751519876860,0.2475217,109240.0,109230.0,0.5351659]
[1751519877264,0.2475217,109240.0,109230.0,0.7182044]
[1751519877863,0.49652882,109240.0,109230.0,0.7182044]
[1751519879162,0.49652882,109240.0,109230.0,0.5351659]
[1751519879564,0.51291067,109240.0,109230.0,0.5351659]
[1751519879869,0.51291067,109240.0,109230.0,0.3638]
[1751519880570,0.51291067,109240.0,109230.0,0.36703147]
[1751519881768,1.37855067,109240.0,109230.0,0.36703147]
[1751519883567,1.37855067,109240.0,109230.0,0.00623147]
[1751519883775,0.1830552,109220.0,109210.0,0.3608]
[1751519884074,1.29750232,109220.0,109210.0,0.3608]
[1751519884269,1.36060232,109220.0,109210.0,0.3608]
[1751519884464,0.1830719,109210.0,109200.0,0.3913]
[1751519884668,0.52767902,109210.0,109200.0,0.5321659]
[1751519885576,0.5983417,109210.0,109200.0,0.5321659]
[1751519886064,0.52467902,109210.0,109200.0,0.5321659]
[1751519886463,0.52467902,109210.0,109200.0,0.5351659]
[1751519886672,0.52967013,109210.0,109200.0,0.3638]
[1751519886874,0.52067902,109210.0,109200.0,0.3638]
[1751519887262,0.52067902,109210.0,109200.0,0.3668]
[1751519891176,0.59270817,109210.0,109200.0,0.3668]
[1751519892380,0.59270817,109210.0,109200.0,0.38034328]
[1751519895584,0.59270817,109210.0,109200.0,0.38034303]
[1751519896382,0.59270817,109210.0,109200.0,0.01954303]
[1751519896581,0.59270817,109210.0,109200.0,0.006]
[1751519897479,0.95350817,109210.0,109200.0,0.006]
[1751519897679,0.1830888,109200.0,109190.0,0.3608]
[1751519897885,1.35927592,109200.0,109190.0,0.3745658]
[1751519898275,1.60095592,109200.0,109190.0,0.3745658]
[1751519898479,1.60095592,109200.0,109190.0,0.37456659]
[1751519898984,1.60095592,109200.0,109190.0,0.37856659]
[1751519899185,1.61763186,109200.0,109190.0,0.37856659]
[1751519899484,1.61763186,109200.0,109190.0,0.38156659]
[1751519907586,1.30580474,109200.0,109190.0,0.5509055]
[1751519907793,1.30580474,109200.0,109190.0,1.01097673]
[1751519908291,1.30580474,109200.0,109190.0,1.19408223]
[1751519908901,0.19976474,109200.0,109190.0,1.19408223]
[1751519909088,1.31317186,109200.0,109190.0,1.01097673]
[1751519909287,1.34527186,109200.0,109190.0,1.01097673]
[1751519909994,1.34515186,109200.0,109190.0,1.01097673]
[1751519910795,0.48087186,109200.0,109190.0,1.01097673]
[1751519910995,1.34515186,109200.0,109190.0,1.01097673]
[1751519913695,1.34515186,109200.0,109190.0,1.01096162]
[1751519915401,1.40009521,109200.0,109190.0,1.01096162]
[1751519915901,1.40009521,109200.0,109190.0,0.28936162]
[1751519916096,1.40009521,109200.0,109190.0,0.65016162]
[1751519917096,1.34515186,109200.0,109190.0,0.65016162]
[1751519919498,1.34515186,109200.0,109190.0,0.83326712]
[1751519919703,1.34515186,109200.0,109190.0,0.65016162]
[1751519919903,1.34515186,109200.0,109190.0,0.65017278]
[1751519920205,1.40009521,109200.0,109190.0,0.65017278]
[1751519921605,1.64910233,109200.0,109190.0,0.02080688]
[1751519921906,1.67970233,109200.0,109190.0,0.02080688]
[1751519922098,1.62475898,109200.0,109190.0,0.02080688]
[1751519922409,1.67966045,109200.0,109190.0,0.02080688]
[1751519923706,2.04046045,109200.0,109190.0,0.02080688]
[1751519926006,1.98555898,109200.0,109190.0,0.02080688]
[1751519926206,1.98555898,109200.0,109190.0,0.007]
[1751519927312,2.04047608,109200.0,109190.0,0.007]
[1751519931422,2.04047608,109200.0,109190.0,0.02100741]
[1751519931813,2.04047608,109200.0,109190.0,0.05763941]
[1751519932217,2.04047608,109200.0,109190.0,0.02100741]
[1751519932916,2.04047608,109200.0,109190.0,0.02424298]
[1751519933717,2.04047608,109200.0,109190.0,0.06087498]
[1751519934111,2.04047608,109200.0,109190.0,0.05763941]
[1751519934312,1.98555898,109200.0,109190.0,0.02100741]
[1751519934717,0.1831223,109180.0,109170.0,0.4534]
[1751519934912,1.29500942,109180.0,109170.0,0.47070293]
[1751519935111,1.29500942,109180.0,109170.0,0.64206883]
[1751519936016,1.29600942,109180.0,109170.0,0.65306883]
[1751519941811,0.1841223,109180.0,109170.0,0.65306883]
[1751519942017,1.29560942,109180.0,109170.0,0.65306883]
[1751519943019,1.29560942,109180.0,109170.0,0.63900632]
[1751519946722,1.29560942,109180.0,109170.0,0.65297758]
[1751519947023,1.0466023,109180.0,109170.0,0.65297758]
[1751519947522,1.0466023,109180.0,109170.0,1.0851238]
[1751519947820,1.0463623,109180.0,109170.0,1.0851238]
[1751519948016,0.1841223,109180.0,109170.0,1.0851238]
[1751519948221,1.0462423,109180.0,109170.0,1.0851238]
[1751519948616,0.1841223,109180.0,109170.0,1.0851238]
[1751519948916,0.1841223,109180.0,109170.0,1.07115254]
[1751519949122,0.1841223,109180.0,109170.0,1.08502774]
[1751519949323,0.1841223,109180.0,109170.0,1.12151828]
[1751519950221,0.1841223,109180.0,109170.0,1.08502774]
[1751519950422,0.1841223,109180.0,109170.0,1.12151828]
[1751519951021,0.1841223,109180.0,109170.0,1.08502774]
[1751519951321,0.1841223,109180.0,109170.0,1.12151828]
[1751519952019,0.1841223,109180.0,109170.0,1.11827786]
[1751519952216,0.1841223,109180.0,109170.0,0.87251005]
[1751519952613,0.1841223,109180.0,109170.0,1.12151717]
[1751519955124,0.1841223,109180.0,109170.0,0.87258197]
[1751519957419,0.1841223,109180.0,109170.0,0.83609143]
[1751519958226,0.1841223,109180.0,109170.0,0.83608945]
[1751519958727,0.1841223,109180.0,109170.0,1.08509657]
[1751519959126,0.1841223,109180.0,109170.0,1.12158711]
[1751519959322,0.1841223,109180.0,109170.0,0.87257999]
[1751519959520,0.1841223,109180.0,109170.0,1.12158711]
[1751519960620,0.001,109180.0,109170.0,1.12158711]
[1751519960823,0.1841223,109180.0,109170.0,1.12158711]
[1751519962429,0.1841223,109180.0,109170.0,1.11835003]
[1751519962629,0.1841223,109180.0,109170.0,1.12908516]
[1751519963022,0.43312942,109180.0,109170.0,0.88007804]
[1751519963333,0.1841223,109180.0,109170.0,0.8435875]
[1751519965429,0.1841223,109180.0,109170.0,0.88007804]
[1751519966329,0.1841223,109180.0,109170.0,1.12908516]
[1751519970029,0.1841223,109180.0,109170.0,0.8435875]
[1751519973232,0.1841223,109180.0,109170.0,0.88007804]
[1751519973934,0.43334811,109180.0,109170.0,1.12930385]
[1751519974134,0.43334811,109180.0,109170.0,1.09281331]
[1751519975133,0.43334811,109180.0,109170.0,1.09281999]
[1751519976739,0.46554811,109180.0,109170.0,1.0928202]
[1751519978736,0.46554811,109180.0,109170.0,1.12931074]
[1751519981144,0.1841223,109180.0,109170.0,1.12931074]
[1751519981546,0.43334811,109180.0,109170.0,1.12931074]
[1751519982740,0.43334811,109180.0,109170.0,1.11535648]
[1751519982946,0.43334811,109180.0,109170.0,1.12925859]
[1751519984456,0.43334811,109180.0,109170.0,0.88003278]
[1751519984657,0.43334811,109180.0,109170.0,1.12925859]
[1751519985353,0.46574811,109180.0,109170.0,1.09276805]
[1751519986258,0.46574811,109180.0,109170.0,0.84354224]
[1751519986562,0.46574811,109180.0,109170.0,1.09276805]
[1751519987664,0.46574811,109180.0,109170.0,1.12925859]
[1751519988364,0.43334811,109180.0,109170.0,1.12925859]
[1751519989554,0.1841223,109180.0,109170.0,1.12925859]
[1751519990167,0.1841223,109180.0,109170.0,1.12925668]
[1751519990567,0.43334811,109180.0,109170.0,1.12925668]
[1751519991268,0.43334811,109180.0,109170.0,0.75094033]
[1751519991454,0.2479223,109180.0,109170.0,1.00016614]
[1751519991660,0.49714811,109180.0,109170.0,1.00016614]
[1751519991862,0.49714811,109180.0,109170.0,1.01973101]
[1751519992264,0.49714811,109180.0,109170.0,1.01973316]